bitfinex/quotes_ETHUSD_20230109
["timestamp","ask_amount","ask_price","bid_price","bid_amount"]
[1673263802872,1.12056543,1324.3,1324.2,11.41538064]
[1673263803124,1.12056543,1324.3,1324.2,3.86366064]
[1673263803334,5.90264807,1324.3,1324.2,3.79766064]
[1673263803502,5.96864807,1324.3,1324.2,3.79766064]
[1673263805863,2.89656543,1324.3,1324.2,3.79766064]
[1673263806079,2.83056543,1324.3,1324.2,3.79766064]
[1673263808557,2.83056543,1324.3,1324.2,11.34938064]
[1673263808796,2.83056543,1324.3,1324.2,11.41538064]
[1673263809176,2.83056543,1324.3,1324.2,3.86366064]
[1673263809394,2.83056543,1324.3,1324.2,3.79766064]
[1673263810241,2.83056543,1324.3,1324.2,11.34938064]
[1673263810449,2.83056543,1324.3,1324.2,11.41538064]
[1673263810855,2.83056543,1324.3,1324.2,3.86366064]
[1673263811080,2.83056543,1324.3,1324.2,3.79766064]
[1673263812693,10.38171543,1324.3,1324.2,3.79766064]
[1673263812869,16.35046541,1324.3,1324.2,3.79766064]
[1673263813294,8.79931541,1324.3,1324.2,3.79766064]
[1673263813531,23.90161541,1324.3,1324.2,3.79766064]
[1673263813693,16.35046541,1324.3,1324.2,3.79766064]
[1673263813904,8.79931541,1324.3,1324.2,3.79766064]
[1673263814641,2.89656543,1324.3,1324.2,3.79766064]
[1673263814905,2.83056543,1324.3,1324.2,3.79766064]
[1673263815601,2.83056543,1324.3,1324.2,11.34938064]
[1673263815862,1.12056543,1324.3,1324.2,11.41538064]
[1673263816005,1.12056543,1324.3,1324.2,3.86366064]
[1673263816215,1.12056543,1324.3,1324.2,3.79766064]
[1673263817267,32.37375437,1324.6,1324.3,7.958]
[1673263817472,0.94775437,1324.6,1324.4,17.7968]
[1673263817718,0.88175437,1324.6,1324.4,26.17168536]
[1673263817907,0.88175437,1324.6,1324.4,29.9439299]
[1673263818119,0.88175437,1324.6,1324.4,37.4945099]
[1673263818738,0.88175437,1324.6,1324.4,22.3933699]
[1673263819818,0.88175437,1324.6,1324.4,18.05432536]
[1673263821635,0.88175437,1324.6,1324.4,17.82432536]
[1673263821784,8.43119437,1324.6,1324.4,17.82432536]
[1673263821991,8.49719437,1324.6,1324.4,17.066]
[1673263822845,16.04663437,1324.6,1324.4,17.066]
[1673263823199,28.37748881,1324.6,1324.4,14.066]
[1673263824682,32.37748881,1324.6,1324.4,0.066]
[1673263824982,32.37748881,1324.6,1324.2,17.6328]
[1673263824983,1.717,1324.5,1324.2,17.6328]
[1673263825201,22.65174,1324.4,1324.2,17.066]
[1673263825362,22.71774,1324.4,1324.2,17.066]
[1673263825790,26.71774,1324.4,1324.2,17.066]
[1673263826203,26.71774,1324.4,1324.2,17.064]
[1673263826407,26.71774,1324.4,1324.2,17.066]
[1673263826622,30.716243,1324.4,1324.2,14.066]
[1673263826833,1.714,1324.3,1324.2,0.066]
[1673263827071,1.714,1324.3,1324.0,0.066]
[1673263827072,7.55172,1324.2,1324.0,0.066]
[1673263827286,0.066,1324.2,1323.9,29.17234]
[1673263827533,7.55131,1324.3,1323.9,25.53571872]
[1673263827534,0.066,1324.3,1323.9,25.53571872]
[1673263827727,52.86712,1324.4,1323.9,25.53571872]
[1673263827884,52.86712,1324.4,1323.9,17.98281872]
[1673263828556,52.86712,1324.4,1324.0,0.23]
[1673263828724,58.610502,1324.4,1323.9,17.98281872]
[1673263829404,58.610502,1324.4,1324.0,3.0]
[1673263832503,1.717,1324.3,1323.9,14.066]
[1673263832717,22.65687,1324.1,1323.9,14.066]
[1673263832957,22.72287,1324.1,1323.9,15.96012371]
[1673263833188,7.61829,1324.1,1323.9,15.96012371]
[1673263833676,0.066,1324.1,1323.9,15.96012371]
[1673263833880,18.82745,1324.2,1323.9,15.96012371]
[1673263834435,26.3794,1324.2,1323.9,15.96012371]
[1673263834970,33.93135,1324.2,1323.9,15.96012371]
[1673263835180,33.93135,1324.2,1323.9,14.066]
[1673263835869,35.64835,1324.2,1323.9,14.066]
[1673263838184,35.64835,1324.2,1323.9,0.066]
[1673263838390,35.64835,1324.2,1323.8,4.94123715]
[1673263838603,35.64835,1324.2,1323.8,12.42923715]
[1673263838854,35.64835,1324.2,1323.8,12.49523715]
[1673263841121,35.64552263,1324.2,1323.8,12.49523715]
[1673263841478,35.64552263,1324.2,1323.9,0.78661641]
[1673263841704,35.64552263,1324.2,1324.0,0.78669423]
[1673263843958,35.64552263,1324.2,1323.9,3.0]
[1673263844184,35.64552263,1324.2,1323.9,6.79766064]
[1673263844424,35.64552263,1324.2,1323.9,6.86366064]
[1673263845212,40.36521289,1324.2,1323.9,6.86366064]
[1673263845576,4.0,1324.1,1323.9,3.86366064]
[1673263845793,7.55287,1324.0,1323.9,3.79766064]
[1673263846000,7.61887,1324.0,1323.9,3.79766064]
[1673263846586,15.17174,1324.0,1323.9,3.79766064]
[1673263847316,7.61887,1324.0,1323.9,3.79766064]
[1673263848593,7.61887,1324.0,1323.8,1.94123715]
[1673263848819,16.82388,1323.9,1323.8,1.87523715]
[1673263849036,24.44332,1323.9,1323.8,1.87523715]
[1673263849520,28.44332,1323.9,1323.8,1.87523715]
[1673263850679,24.44332,1323.9,1323.8,1.87523715]
[1673263850939,30.9819892,1323.9,1323.8,1.87523715]
[1673263852261,34.9819892,1323.9,1323.8,1.87523715]
[1673263853412,30.9819892,1323.9,1323.8,1.87523715]
[1673263853887,34.9819892,1323.9,1323.8,1.87523715]
[1673263854420,35.5489892,1323.9,1323.8,1.87523715]
[1673263854915,37.2659892,1323.9,1323.8,1.87523715]
[1673263856142,35.5489892,1323.9,1323.8,1.87523715]
[1673263856791,35.2009892,1323.9,1323.8,1.87523715]
[1673263859030,31.2009892,1323.9,1323.8,1.87523715]
[1673263860387,35.2009892,1323.9,1323.8,1.87523715]
[1673263860590,31.2009892,1323.9,1323.8,1.87523715]
[1673263861398,31.2009892,1323.9,1323.8,1.87219389]
[1673263862296,35.2009892,1323.9,1323.8,1.87219389]
[1673263864241,33.8319892,1323.9,1323.8,1.87219389]
[1673263865334,35.2009892,1323.9,1323.8,1.87219389]
[1673263879102,41.06513843,1323.9,1323.8,1.87219389]
[1673263879420,41.06454449,1323.9,1323.8,1.87219389]
[1673263879578,35.2009892,1323.9,1323.8,1.87219389]
[1673263879940,41.06511752,1323.9,1323.8,1.87219389]
[1673263880104,35.2009892,1323.9,1323.8,1.87219389]
[1673263880313,45.02012384,1323.9,1323.8,1.87219389]
[1673263880747,39.15542249,1323.9,1323.8,1.87219389]
[1673263881197,45.02069511,1323.9,1323.8,1.87219389]
[1673263881934,45.02069511,1323.9,1323.8,1.87010269]
[1673263883362,39.15542249,1323.9,1323.8,1.87010269]
[1673263883567,45.02006614,1323.9,1323.8,1.87010269]
[1673263884043,39.15542249,1323.9,1323.8,1.87010269]
[1673263884277,45.02064127,1323.9,1323.8,1.87010269]
[1673263884802,45.02065126,1323.9,1323.8,1.87010269]
[1673263885536,50.01651544,1323.9,1323.8,1.87010269]
[1673263885730,50.73738707,1323.9,1323.7,2.37e-06]
[1673263885950,41.26612863,1323.8,1323.7,2.37e-06]
[1673263886154,75.15532631,1323.8,1323.7,2.37e-06]
[1673263886372,75.9136217,1323.8,1323.7,2.37e-06]
[1673263886543,80.9136217,1323.8,1323.7,2.37e-06]
[1673263887017,81.6016217,1323.8,1323.7,2.37e-06]
[1673263887596,81.60364611,1323.8,1323.7,2.37e-06]
[1673263887805,77.65182818,1323.8,1323.7,2.37e-06]
[1673263888011,82.32300251,1323.8,1323.7,2.37e-06]
[1673263888851,86.12066315,1323.8,1323.7,2.37e-06]
[1673263891848,71.79782304,1323.8,1323.7,2.37e-06]
[1673263892061,74.02864878,1323.8,1323.7,2.37e-06]
[1673263892286,83.67026771,1323.8,1323.7,2.37e-06]
[1673263892594,77.82635168,1323.8,1323.7,2.37e-06]
[1673263892905,77.82633923,1323.8,1323.7,2.37e-06]
[1673263894314,76.11933923,1323.8,1323.7,2.37e-06]
[1673263894900,76.11933923,1323.8,1323.5,0.4039]
[1673263895078,4.0,1323.7,1323.5,0.4039]
[1673263895293,30.2206,1323.6,1323.5,0.4039]
[1673263895637,34.2866,1323.6,1323.5,0.4039]
[1673263897737,54.5106,1323.6,1323.5,0.4039]
[1673263899309,57.89567129,1323.6,1323.5,0.4039]
[1673263900459,74.78128509,1323.6,1323.5,0.4039]
[1673263900680,89.94533703,1323.6,1323.5,0.4039]
[1673263900842,90.70366239,1323.6,1323.5,0.4039]
[1673263901303,95.70366239,1323.6,1323.5,0.4039]
[1673263904624,91.75380684,1323.6,1323.5,0.4039]
[1673263905086,99.50132303,1323.6,1323.3,0.07354811]
[1673263905267,5.10183465,1323.4,1323.3,0.07354811]
[1673263905502,44.03479806,1323.4,1323.3,0.07354811]
[1673263905807,38.21642098,1323.4,1323.3,0.07354811]
[1673263906017,69.76262098,1323.4,1323.3,0.07354811]
[1673263906227,74.76262098,1323.4,1323.3,0.07354811]
[1673263907407,71.37978633,1323.4,1323.3,0.07354811]
[1673263907778,73.09878633,1323.4,1323.3,0.07354811]
[1673263908137,74.76262098,1323.4,1323.3,0.07354811]
[1673263912209,71.37978633,1323.4,1323.3,0.07354811]
[1673263912663,74.76262098,1323.4,1323.3,0.07354811]
[1673263913510,49.54820633,1323.4,1323.3,0.07354811]
[1673263913716,57.10449633,1323.4,1323.3,0.07354811]
[1673263916553,25.55829633,1323.4,1323.3,0.07354811]
[1673263916765,22.73487,1323.4,1323.3,0.07354811]
[1673263920921,0.066,1323.4,1323.3,0.07354811]
[1673263921148,10.93870465,1323.5,1323.3,1.78554811]
[1673263921149,15.74489,1323.5,1323.3,1.78554811]
[1673263921388,7.55629,1323.4,1323.3,1.78554811]
[1673263921555,7.62229,1323.4,1323.3,1.78554811]
[1673263921756,0.066,1323.4,1323.3,1.78554811]
[1673263921987,22.73395,1323.5,1323.3,1.78554811]
[1673263922966,22.73395,1323.5,1323.3,0.07354811]
[1673263925895,26.11678465,1323.5,1323.3,0.07354811]
[1673263926313,32.68860711,1323.5,1323.3,0.07354811]
[1673263926855,32.68860711,1323.5,1323.3,0.07095824]
[1673263937735,36.68860711,1323.5,1323.3,0.07095824]
[1673263938544,32.68860711,1323.5,1323.3,0.07095824]
[1673263940044,3.38283465,1323.4,1323.3,0.07095824]
[1673263940207,21.45789809,1323.4,1323.3,0.07095824]
[1673263940416,29.08018809,1323.4,1323.3,0.07095824]
[1673263942259,18.14106344,1323.4,1323.3,0.07095824]
[1673263942886,29.08018809,1323.4,1323.3,0.07095824]
[1673263943201,25.69735344,1323.4,1323.3,0.07095824]
[1673263943512,21.52389809,1323.4,1323.3,0.07095824]
[1673263943711,18.14106344,1323.4,1323.3,0.07095824]
[1673263944096,29.08018809,1323.4,1323.3,0.07095824]
[1673263944581,18.14106344,1323.4,1323.3,0.07095824]
[1673263945676,25.69735344,1323.4,1323.3,0.07095824]
[1673263946127,29.08018809,1323.4,1323.3,0.07095824]
[1673263947040,21.52389809,1323.4,1323.3,0.07095824]
[1673263947261,29.08018809,1323.4,1323.3,0.07095824]
[1673263947703,33.08018809,1323.4,1323.3,0.07095824]
[1673263948838,29.08018809,1323.4,1323.3,0.07095824]
[1673263949196,29.08018809,1323.4,1323.3,0.0676528]
[1673263949710,40.01628809,1323.4,1323.3,0.0676528]
[1673263949921,40.02338022,1323.4,1323.3,0.0676528]
[1673263950885,36.63345344,1323.4,1323.3,0.0676528]
[1673263951086,40.63345344,1323.4,1323.3,0.0676528]
[1673263951888,36.63345344,1323.4,1323.3,0.0676528]
[1673263952099,40.02377776,1323.4,1323.3,0.0676528]
[1673263957493,14.39242432,1323.4,1323.3,0.0676528]
[1673263957666,21.94871432,1323.4,1323.3,0.0676528]
[1673263957874,37.06129432,1323.4,1323.3,0.0676528]
[1673263958496,33.67097,1323.4,1323.3,0.0676528]
[1673263958749,26.11468,1323.4,1323.3,0.0676528]
[1673263958915,29.50500432,1323.4,1323.3,0.0676528]
[1673263959124,37.06129432,1323.4,1323.3,0.0676528]
[1673263959911,29.50500432,1323.4,1323.3,0.0676528]
[1673263960120,40.76738675,1323.4,1323.3,0.0676528]
[1673263960333,33.21109675,1323.4,1323.3,0.0676528]
[1673263961908,29.50500432,1323.4,1323.3,0.0676528]
[1673263962070,37.06129432,1323.4,1323.3,0.0676528]
[1673263962695,29.50500432,1323.4,1323.3,0.0676528]
[1673263964374,30.17263089,1323.4,1323.3,0.0676528]
[1673263965528,37.72892089,1323.4,1323.3,0.0676528]
[1673263966020,42.65239053,1323.4,1323.3,0.0676528]
[1673263969532,42.65397144,1323.4,1323.3,0.0676528]
[1673263970526,42.65397144,1323.4,1323.3,0.06468214]
[1673263973657,49.02629609,1323.4,1323.3,0.06468214]
[1673263973887,43.21192176,1323.4,1323.3,0.06468214]
[1673263975223,63.95752176,1323.4,1323.3,0.06468214]
[1673263983662,60.00766621,1323.4,1323.3,0.06468214]
[1673263983840,63.39746928,1323.4,1323.3,0.06468214]
[1673263984958,55.83940731,1323.4,1323.3,0.06468214]
[1673263985203,58.47222767,1323.4,1323.3,0.06468214]
[1673263996764,59.03228015,1323.4,1323.3,0.06468214]
[1673263998214,58.88465594,1323.4,1323.3,0.06468214]
[1673263999979,54.93480039,1323.4,1323.3,0.06468214]
[1673264002436,43.77207594,1323.4,1323.3,0.06468214]
[1673264002647,58.17632326,1323.4,1323.3,0.06468214]
[1673264003263,50.62003326,1323.4,1323.3,0.06468214]
[1673264003819,54.78465339,1323.4,1323.3,0.06468214]
[1673264004057,58.73450894,1323.4,1323.3,0.06468214]
[1673264004503,54.78465339,1323.4,1323.3,0.06468214]
[1673264006981,58.73450894,1323.4,1323.3,0.06468214]
[1673264017957,51.17821894,1323.4,1323.3,0.06468214]
[1673264018372,58.73450894,1323.4,1323.3,0.06468214]
[1673264019476,51.17821894,1323.4,1323.3,0.06468214]
[1673264020407,58.73450894,1323.4,1323.3,0.06468214]
[1673264020613,51.17821894,1323.4,1323.3,0.06468214]
[1673264021319,58.73450894,1323.4,1323.3,0.06468214]
[1673264021532,65.08402754,1323.4,1323.3,0.06468214]
[1673264021758,61.12518472,1323.4,1323.3,0.06468214]
[1673264021990,65.08365145,1323.4,1323.3,0.06468214]
[1673264022923,61.12518472,1323.4,1323.3,0.06468214]
[1673264023113,66.36355905,1323.4,1323.3,0.06468214]
[1673264023315,72.1778887,1323.4,1323.3,0.06468214]
[1673264024617,66.36355905,1323.4,1323.3,0.06468214]
[1673264025154,66.36355905,1323.4,1323.3,0.06253023]
[1673264029511,66.36355905,1323.4,1323.0,1.56526732]
[1673264029727,3.3902206,1323.2,1322.9,35.78986694]
[1673264029933,10.9477406,1323.2,1322.9,16.99234694]
[1673264030160,11.0137406,1323.2,1322.9,16.99234694]
[1673264030399,11.0137406,1323.2,1322.9,22.83717016]
[1673264030620,11.0137406,1323.2,1322.9,20.26959436]
[1673264030822,15.0137406,1323.2,1322.9,20.26959436]
[1673264031034,7.4562206,1323.2,1322.9,27.82874436]
[1673264031724,3.3902206,1323.1,1322.9,27.82674436]
[1673264031934,7.4562206,1323.2,1322.9,27.82874436]
[1673264032811,3.3902206,1323.1,1322.9,0.15550694]
[1673264033031,10.9483406,1323.1,1322.9,0.08950694]
[1673264033236,11.0143406,1323.1,1322.9,0.08950694]
[1673264033428,18.5723006,1323.1,1322.9,0.08950694]
[1673264033982,15.18208,1323.1,1322.9,0.08950694]
[1673264034299,7.62404,1323.1,1322.9,0.08950694]
[1673264034680,0.066,1323.1,1322.9,7.64860694]
[1673264034892,30.1294106,1323.2,1322.9,7.71460694]
[1673264035238,26.1294106,1323.2,1322.9,7.71460694]
[1673264035865,26.1294106,1323.2,1322.9,9.42060694]
[1673264036080,11.0136506,1323.2,1322.9,16.97975694]
[1673264037625,26.1290106,1323.2,1322.9,1.86150694]
[1673264037837,26.1290106,1323.2,1322.9,1.79550694]
[1673264038178,18.5710806,1323.2,1322.9,9.35459694]
[1673264038347,18.5710806,1323.2,1322.9,9.42059694]
[1673264040380,26.1290106,1323.2,1322.9,1.86150694]
[1673264040545,26.1290106,1323.2,1322.9,1.79550694]
[1673264041070,26.1290106,1323.2,1322.9,9.35464694]
[1673264041071,18.5710806,1323.2,1322.9,9.35464694]
[1673264041282,18.5710806,1323.2,1322.9,9.42064694]
[1673264043271,19.99652587,1323.2,1322.9,9.42064694]
[1673264043973,30.49602587,1323.2,1322.9,9.42064694]
[1673264044177,31.06332587,1323.2,1322.9,9.42064694]
[1673264045043,38.62125587,1323.2,1322.9,1.86150694]
[1673264045295,38.62125587,1323.2,1322.9,1.79550694]
[1673264046812,31.06332587,1323.2,1322.9,1.79550694]
[1673264047023,20.56382587,1323.2,1322.9,1.79550694]
[1673264047249,20.56382587,1323.2,1322.9,9.35462694]
[1673264047455,20.56382587,1323.2,1322.9,9.42062694]
[1673264049066,20.56382587,1323.2,1322.9,16.97977694]
[1673264050368,20.56382587,1323.2,1322.9,9.41696784]
[1673264050624,28.12175587,1323.2,1322.9,9.41696784]
[1673264050786,4.0,1323.1,1322.9,9.41696784]
[1673264051207,10.9482906,1323.1,1322.9,1.85784784]
[1673264051457,11.0142906,1323.1,1322.9,1.79184784]
[1673264053517,3.4562206,1323.1,1322.9,9.35094784]
[1673264053762,3.3902206,1323.1,1322.9,9.41694784]
[1673264055831,10.9482406,1323.1,1322.9,1.85784784]
[1673264056038,26.1302606,1323.1,1322.9,1.79184784]
[1673264056638,3.3902206,1323.0,1322.9,1.79184784]
[1673264056826,3.3902206,1323.0,1322.9,0.08584784]
[1673264056827,31.87871104,1323.0,1322.9,0.08584784]
[1673264057039,26.1319306,1323.0,1322.9,0.08584784]
[1673264057359,3.4562206,1323.0,1322.9,0.08584784]
[1673264057568,35.05719935,1323.0,1322.9,0.08584784]
[1673264057724,35.69059935,1323.0,1322.9,0.08584784]
[1673264058198,63.61959935,1323.0,1322.9,0.08584784]
[1673264060345,57.81057015,1323.0,1322.9,0.08584784]
[1673264060561,63.61517765,1323.0,1322.9,0.08584784]
[1673264060788,63.61517411,1323.0,1322.9,0.08584784]
[1673264062083,53.81057015,1323.0,1322.9,0.08584784]
[1673264064400,49.85531279,1323.0,1322.9,0.08584784]
[1673264064714,53.24214037,1323.0,1322.9,0.08584784]
[1673264065216,49.85531279,1323.0,1322.9,0.08584784]
[1673264065639,53.24218783,1323.0,1322.9,0.08584784]
[1673264065846,51.52818783,1323.0,1322.9,0.08584784]
[1673264067607,43.96961783,1323.0,1322.9,0.08584784]
[1673264068043,51.52818783,1323.0,1322.9,0.08584784]
[1673264069962,43.96961783,1323.0,1322.9,0.08584784]
[1673264070136,48.14131279,1323.0,1322.9,0.08584784]
[1673264070561,51.52658375,1323.0,1322.9,0.08584784]
[1673264072484,48.14131279,1323.0,1322.9,0.08233761]
[1673264072885,53.98613601,1323.0,1322.9,0.08233761]
[1673264073097,65.93137937,1323.0,1322.9,0.08233761]
[1673264073311,64.97612201,1323.0,1322.8,0.08952408]
[1673264073500,34.75417218,1322.9,1322.8,0.08952408]
[1673264073713,38.4658409,1322.9,1322.8,0.08952408]
[1673264073950,42.41433986,1322.9,1322.8,0.08952408]
[1673264074165,47.9270005,1322.9,1322.8,0.08952408]
[1673264074338,51.68532586,1322.9,1322.8,0.08952408]
[1673264074548,52.7368269,1322.9,1322.8,0.08952408]
[1673264074980,63.2427269,1322.9,1322.8,0.08952408]
[1673264075908,61.5267269,1322.9,1322.8,0.08952408]
[1673264077002,64.90919405,1322.9,1322.8,0.08952408]
[1673264077226,65.47522586,1322.9,1322.8,0.08952408]
[1673264077709,61.5267269,1322.9,1322.8,0.08952408]
[1673264078473,27.11621843,1322.9,1322.8,0.08952408]
[1673264078641,21.54881843,1322.9,1322.8,15.20896408]
[1673264078844,18.16606768,1322.9,1322.8,15.27496408]
[1673264079512,18.16606768,1322.9,1322.8,7.71524408]
[1673264079737,0.066,1322.9,1322.8,0.15552408]
[1673264079897,25.59775075,1323.0,1322.8,0.15552408]
[1673264079898,22.281,1323.0,1322.8,9.36824408]
[1673264080104,22.281,1323.0,1322.8,9.43424408]
[1673264080839,22.281,1323.0,1322.8,11.8986139]
[1673264081159,0.066,1323.0,1322.9,1.719]
[1673264081377,11.6217,1323.1,1322.9,1.719]
[1673264082314,11.61927325,1323.1,1322.9,1.719]
[1673264082522,0.55010649,1323.0,1322.9,3.83670639]
[1673264082942,0.55010649,1323.0,1322.9,11.39582639]
[1673264083308,0.55010649,1323.0,1322.9,11.46182639]
[1673264084886,0.55010649,1323.0,1322.9,19.02097639]
[1673264086094,0.55010649,1323.0,1322.9,11.46182639]
[1673264086464,0.55010649,1323.0,1322.9,26.58012639]
[1673264093579,0.55010649,1323.0,1322.9,19.02097639]
[1673264093792,0.55010649,1323.0,1322.9,3.90270639]
[1673264093968,0.55010649,1323.0,1322.9,3.83670639]
[1673264095380,0.55010649,1323.0,1322.9,1.719]
[1673264095766,0.55010649,1323.0,1322.9,9.27815]
[1673264095966,0.55010649,1323.0,1322.9,9.34415]
[1673264097543,0.55010649,1323.0,1322.9,16.9033]
[1673264098717,0.55010649,1323.0,1322.9,24.46245]
[1673264099047,0.55010649,1323.0,1322.9,28.09191939]
[1673264102656,0.55010649,1323.0,1322.9,20.53276939]
[1673264102814,0.55010649,1323.0,1322.9,1.785]
[1673264103158,0.55010649,1323.0,1322.9,1.719]
[1673264103552,0.55010649,1323.0,1322.9,1.71568843]
[1673264104745,0.55010649,1323.0,1322.9,9.27483843]
[1673264104956,0.55010649,1323.0,1322.9,16.89998843]
[1673264106215,0.55010649,1323.0,1322.9,9.34083843]
[1673264109902,0.55010649,1323.0,1322.9,19.52680668]
[1673264112059,0.55010649,1323.0,1322.9,27.08595668]
[1673264117675,0.55010649,1323.0,1322.9,19.52680668]
[1673264117839,0.55010649,1323.0,1322.9,16.89998843]
[1673264118889,0.55010649,1323.0,1322.9,24.45913843]
[1673264119761,0.55010649,1323.0,1322.9,16.89998843]
[1673264120359,0.55010649,1323.0,1322.9,24.45913843]
[1673264123855,0.55010649,1323.0,1322.9,16.89998843]
[1673264124818,0.55010649,1323.0,1322.9,24.45913843]
[1673264126727,0.55010649,1323.0,1322.9,16.89998843]
[1673264126875,0.55010649,1323.0,1322.9,24.45913843]
[1673264127503,0.55010649,1323.0,1322.9,24.45548078]
[1673264135126,0.55010649,1323.0,1322.9,22.74345]
[1673264136488,0.55010649,1323.0,1322.9,26.54111064]
[1673264142583,0.54694586,1323.0,1322.9,26.54111064]
[1673264150987,0.54694586,1323.0,1322.9,30.13248494]
[1673264155874,0.54694586,1323.0,1322.9,31.85148494]
[1673264159348,0.54694586,1323.0,1322.9,28.26011064]
[1673264166868,0.54694586,1323.0,1322.9,26.54111064]
[1673264167556,0.54694586,1323.0,1322.9,26.5385462]
[1673264167875,0.54694586,1323.0,1322.9,22.74088556]
[1673264168050,0.54694586,1323.0,1322.9,0.066]
[1673264168260,0.54694586,1323.0,1322.8,18.20843408]
[1673264168442,0.54694586,1323.0,1322.8,25.83383408]
[1673264168892,0.54694586,1323.0,1322.8,33.39355408]
[1673264169108,0.54694586,1323.0,1322.8,37.19121472]
[1673264169285,0.54694586,1323.0,1322.8,37.75861472]
[1673264169651,0.54694586,1323.0,1322.8,37.19121472]
[1673264172337,0.54694586,1323.0,1322.8,29.63149472]
[1673264173586,0.54694586,1323.0,1322.8,25.83383408]
[1673264174479,0.54694586,1323.0,1322.8,29.63149472]
[1673264174641,0.54694586,1323.0,1322.8,33.5312186]
[1673264175528,0.54694586,1323.0,1322.8,10.8529086]
[1673264175702,0.54694586,1323.0,1322.8,14.51239472]
[1673264175920,0.54694586,1323.0,1322.8,23.77863472]
[1673264176127,0.54694586,1323.0,1322.8,31.33802472]
[1673264177090,0.54694586,1323.0,1322.8,29.63102472]
[1673264188457,0.54694586,1323.0,1322.8,29.62893171]
[1673264204677,3.92969661,1323.0,1322.8,29.62893171]
[1673264206478,5.45524627,1323.0,1322.8,29.62893171]
[1673264206658,5.52124627,1323.0,1322.8,29.62893171]
[1673264206865,2.13849552,1323.0,1322.8,29.62893171]
[1673264207067,2.07249552,1323.0,1322.8,29.62893171]
[1673264207497,5.45524627,1323.0,1322.8,29.62893171]
[1673264207745,5.52124627,1323.0,1322.8,29.62893171]
[1673264207958,2.13849552,1323.0,1322.8,29.62893171]
[1673264208113,2.07249552,1323.0,1322.8,29.62893171]
[1673264208325,5.45524627,1323.0,1322.8,29.62893171]
[1673264208580,3.99267112,1323.0,1322.8,29.62893171]
[1673264208749,3.92667112,1323.0,1322.8,29.62893171]
[1673264208964,0.54392037,1323.0,1322.8,29.62893171]
[1673264209396,3.92667112,1323.0,1322.8,29.62893171]
[1673264210160,3.92667112,1323.0,1322.8,18.27236107]
[1673264210372,8.50120255,1323.0,1322.8,18.27236107]
[1673264210594,8.56720255,1323.0,1322.8,0.15343107]
[1673264210812,8.56720255,1323.0,1322.8,0.08743107]
[1673264211124,16.12594255,1323.0,1322.8,0.08743107]
[1673264211484,8.56720255,1323.0,1322.8,7.64711107]
[1673264211695,8.56720255,1323.0,1322.8,7.71311107]
[1673264212218,16.12583255,1323.0,1322.8,0.15343107]
[1673264212544,16.12583255,1323.0,1322.8,0.08743107]
[1673264212764,8.56720255,1323.0,1322.8,7.64710107]
[1673264213104,8.56720255,1323.0,1322.8,7.71310107]
[1673264213719,16.12579255,1323.0,1322.8,0.15343107]
[1673264213897,16.12579255,1323.0,1322.8,0.08743107]
[1673264219194,8.56720255,1323.0,1322.8,7.64703107]
[1673264219363,8.56720255,1323.0,1322.8,7.71303107]
[1673264222509,5.1844518,1323.0,1322.8,7.71303107]
[1673264222771,5.1844518,1323.0,1322.8,15.27275107]
[1673264222941,8.56720255,1323.0,1322.8,15.27275107]
[1673264223157,5.1844518,1323.0,1322.8,15.27275107]
[1673264223510,6.71441382,1323.0,1322.8,15.27275107]
[1673264227764,2.13988239,1323.0,1322.8,15.27275107]
[1673264228130,2.13988239,1323.0,1322.8,22.83247107]
[1673264228131,2.07388239,1323.0,1322.8,22.83247107]
[1673264231025,2.07388239,1323.0,1322.8,22.82967526]
[1673264238326,2.12388239,1323.0,1322.8,22.82967526]
[1673264238518,2.07388239,1323.0,1322.8,22.82967526]
[1673264241505,5.45663314,1323.0,1322.8,22.82967526]
[1673264241674,5.52263314,1323.0,1322.8,22.82967526]
[1673264242692,7.20087645,1323.0,1322.8,15.26995526]
[1673264246623,7.20087645,1323.0,1322.8,7.71023526]
[1673264248573,14.75970645,1323.0,1322.8,0.15063526]
[1673264248786,22.31853645,1323.0,1322.8,0.08463526]
[1673264251884,14.75970645,1323.0,1322.8,0.08463526]
[1673264252252,14.75970645,1323.0,1322.8,0.08158122]
[1673264253244,3.38275075,1322.9,1322.8,0.08158122]
[1673264253622,45.70966645,1323.0,1322.8,0.08158122]
[1673264254474,41.70966645,1323.0,1322.8,0.08158122]
[1673264255874,34.15080645,1323.0,1322.8,0.08158122]
[1673264256814,10.94190075,1322.9,1322.8,0.08158122]
[1673264257026,23.88847461,1322.9,1322.8,0.08158122]
[1673264257242,27.90164664,1322.9,1322.8,0.08158122]
[1673264257415,27.90167839,1322.9,1322.8,0.08158122]
[1673264258285,44.14259604,1322.9,1322.8,0.08158122]
[1673264258497,45.85159604,1322.9,1322.8,0.08158122]
[1673264258874,47.02907386,1322.9,1322.8,0.08158122]
[1673264259084,43.02907386,1322.9,1322.8,0.08158122]
[1673264259294,46.42366571,1322.9,1322.8,0.08158122]
[1673264263222,44.71466571,1322.9,1322.8,0.08158122]
[1673264263433,37.15551571,1322.9,1322.8,0.08158122]
[1673264265071,37.20551571,1322.9,1322.8,0.08158122]
[1673264265279,44.71466571,1322.9,1322.8,0.08158122]
[1673264274062,52.83239604,1322.9,1322.8,0.08158122]
[1673264277049,52.83239604,1322.9,1322.8,0.07883059]
[1673264278528,46.98757282,1322.9,1322.8,0.07883059]
[1673264278944,20.36162386,1322.9,1322.8,22.75799059]
[1673264279199,23.75301348,1322.9,1322.8,7.70455059]
[1673264279451,23.75301348,1322.9,1322.8,15.26427059]
[1673264280380,23.75301348,1322.9,1322.8,7.70455059]
[1673264280590,23.75301348,1322.9,1322.8,0.14483059]
[1673264280917,14.42818962,1322.9,1322.8,0.07883059]
[1673264281133,11.0368,1322.9,1322.8,0.07883059]
[1673264281649,21.98733962,1322.9,1322.8,0.07883059]
[1673264282247,11.0368,1322.9,1322.8,0.07883059]
[1673264282460,0.066,1322.9,1322.8,22.75799059]
[1673264282685,23.39240999,1323.0,1322.8,25.87133206]
[1673264284027,20.00102037,1323.0,1322.8,25.87133206]
[1673264284910,0.60992037,1323.0,1322.8,29.6689927]
[1673264285123,0.54392037,1323.0,1322.8,29.6689927]
[1673264285297,3.93530999,1323.0,1322.8,31.3869927]
[1673264289327,3.93530999,1323.0,1322.8,8.7078327]
[1673264289488,11.49410999,1323.0,1322.8,8.7078327]
[1673264289694,19.11890999,1323.0,1322.8,6.9898327]
[1673264290022,11.56010999,1323.0,1322.8,3.94249123]
[1673264290251,11.56010999,1323.0,1322.8,3.87649123]
[1673264290672,11.55988999,1323.0,1322.8,3.87649123]
[1673264290864,4.00130999,1323.0,1322.8,3.87649123]
[1673264291212,19.05244999,1323.0,1322.8,0.07883059]
[1673264291427,3.39138962,1322.9,1322.8,0.07883059]
[1673264291580,4.00130999,1323.0,1322.8,7.63855059]
[1673264291795,3.93530999,1323.0,1322.8,7.70455059]
[1673264292021,3.93530999,1323.0,1322.8,10.16664306]
[1673264294146,11.49393999,1323.0,1322.8,2.60692306]